[Event "Championnat d'Europe de Blitz"]
[Date "2024.12.09"]
[White "Dinev, Dejan"]
[Black "Livaic, Leon"]
[WhiteElo "2209"]
[BlackElo "2560"]
[Round "2.31"]
[Result "0-1"]
[TimeControl "180+2"]

1. d4 {[%emt 00:00:04] [%clk 00:02:59]} d6 {[%emt 00:00:01] [%clk 00:03:03]} 2.
Nf3 {[%clk 00:03:00]} Nf6 {[%emt 00:00:01] [%clk 00:03:04]} 3. g3 {[%clk
00:03:01]} g6 {[%emt 00:00:01] [%clk 00:03:04]} 4. Bg2 {[%clk 00:03:03]} Bg7
{[%emt 00:00:02] [%clk 00:03:06]} 5. O-O {[%emt 00:00:01] [%clk 00:03:04]} O-O
{[%emt 00:00:02] [%clk 00:03:06]} 6. Nc3 {[%emt 00:00:02] [%clk 00:03:03]} Nbd7
{[%emt 00:00:04] [%clk 00:03:04]} 7. a4 {[%emt 00:00:02] [%clk 00:03:04]} a5
{[%emt 00:00:02] [%clk 00:03:04]} 8. e4 {[%emt 00:00:02] [%clk 00:03:04]} e5
{[%emt 00:00:01] [%clk 00:03:05]} 9. Re1 {[%emt 00:00:02] [%clk 00:03:04]} c6
{[%emt 00:00:02] [%clk 00:03:05]} 10. dxe5 {[%emt 00:00:03] [%clk 00:03:03]}
dxe5 {[%emt 00:00:03] [%clk 00:03:04]} 11. Qd6 {[%emt 00:00:06] [%clk 00:02:59]}
Re8 {[%emt 00:00:06] [%clk 00:03:00]} 12. Bg5 {[%emt 00:00:06] [%clk 00:02:55]}
h6 {[%emt 00:00:15] [%clk 00:02:47]} 13. Be3 {[%emt 00:00:05] [%clk 00:02:52]}
Bf8 {[%emt 00:00:05] [%clk 00:02:44]} 14. Qd2 {[%emt 00:00:01] [%clk 00:02:52]}
Ng4 {[%emt 00:00:03] [%clk 00:02:43]} 15. Rad1 {[%emt 00:00:03] [%clk 00:02:52]}
Nxe3 {[%emt 00:00:05] [%clk 00:02:40]} 16. Rxe3 {[%emt 00:00:03] [%clk
00:02:50]} Qb6 {[%emt 00:00:08] [%clk 00:02:34]} 17. Qc1 {[%emt 00:00:07] [%clk
00:02:46]} Nc5 {[%emt 00:00:08] [%clk 00:02:28]} 18. Re2 {[%emt 00:00:02] [%clk
00:02:46]} Be6 {[%emt 00:00:09] [%clk 00:02:22]} 19. Nxe5 {[%emt 00:00:31] [%clk
00:02:17]} Bg7 {[%emt 00:00:14] [%clk 00:02:10]} 20. Nd3 {[%emt 00:00:20] [%clk
00:01:58]} Nxd3 {[%emt 00:00:08] [%clk 00:02:04]} 21. cxd3 {[%emt 00:00:06]
[%clk 00:01:54]} Rad8 {[%emt 00:00:01] [%clk 00:02:05]} 22. Qe3 {[%emt 00:00:53]
[%clk 00:01:02]} Qb4 {[%emt 00:00:14] [%clk 00:01:53]} 23. Red2 {[%emt 00:00:37]
[%clk 00:00:27]} h5 {[%emt 00:00:05] [%clk 00:01:50]} 24. h3 {[%emt 00:00:03]
[%clk 00:00:27]} Rd7 {[%emt 00:00:09] [%clk 00:01:43]} 25. d4 {[%emt 00:00:03]
[%clk 00:00:26]} Bb3 {[%emt 00:00:01] [%clk 00:01:44]} 26. Re1 {[%emt 00:00:14]
[%clk 00:00:13]} Bxd4 {[%emt 00:00:10] [%clk 00:01:36]} 27. Qf3 {[%emt 00:00:06]
[%clk 00:00:09]} Red8 {[%emt 00:00:11] [%clk 00:01:27]} 28. g4 {[%emt 00:00:02]
[%clk 00:00:09]} hxg4 {[%emt 00:00:03] [%clk 00:01:26]} 29. hxg4 {[%clk
00:00:10]} Be5 {[%emt 00:00:13] [%clk 00:01:15]} 30. Rxd7 {[%emt 00:00:01] [%clk
00:00:11]} Rxd7 {[%clk 00:01:16]} 31. g5 {[%emt 00:00:02] [%clk 00:00:10]} Be6
{[%emt 00:00:11] [%clk 00:01:07]} 32. Bh3 {[%emt 00:00:01] [%clk 00:00:11]} Qe7
{[%emt 00:00:17] [%clk 00:00:52]} 33. Bxe6 {[%emt 00:00:01] [%clk 00:00:12]}
Qxe6 {[%emt 00:00:02] [%clk 00:00:53]} 34. Kg2 {[%emt 00:00:01] [%clk 00:00:12]}
Rd2 {[%emt 00:00:18] [%clk 00:00:37]} 35. Re2 {[%clk 00:00:13]} Rd4 {[%emt
00:00:13] [%clk 00:00:27]} 36. Qe3 {[%emt 00:00:02] [%clk 00:00:12]} Qg4+ {[%emt
00:00:05] [%clk 00:00:24]} 37. Kf1 {[%clk 00:00:13]} Rd8 {[%emt 00:00:03] [%clk
00:00:23]} 38. f3 {[%emt 00:00:05] [%clk 00:00:10]} Qh3+ {[%emt 00:00:01] [%clk
00:00:23]} 39. Rg2 {[%emt 00:00:05] [%clk 00:00:08]} Bd4 {[%emt 00:00:04] [%clk
00:00:21]} 0-1

[Site "Europe Echecs"]

[Event "Championnat d'Europe de Blitz"]
[Date "2024.12.09"]
[White "Beerdsen, Thomas"]
[Black "Tudor, Henry Edward"]
[WhiteElo "2502"]
[BlackElo "2375"]
[Round "2.32"]
[Result "1/2-1/2"]
[TimeControl "180+2"]

1. e4 {[%clk 00:03:02]} c5 {[%emt 00:00:01] [%clk 00:03:03]} 2. Nf3 {[%emt
00:00:01] [%clk 00:03:03]} d6 {[%emt 00:00:04] [%clk 00:03:01]} 3. d4 {[%clk
00:03:04]} cxd4 {[%clk 00:03:03]} 4. Nxd4 {[%emt 00:00:01] [%clk 00:03:05]} Nf6
{[%clk 00:03:03]} 5. Nc3 {[%emt 00:00:01] [%clk 00:03:06]} a6 {[%clk 00:03:05]}
6. a3 {[%emt 00:00:01] [%clk 00:03:07]} g6 {[%emt 00:00:10] [%clk 00:02:56]} 7.
Bc4 {[%emt 00:00:01] [%clk 00:03:08]} Bg7 {[%emt 00:00:02] [%clk 00:02:56]} 8.
h3 {[%emt 00:00:03] [%clk 00:03:07]} O-O {[%emt 00:00:07] [%clk 00:02:51]} 9.
O-O {[%emt 00:00:03] [%clk 00:03:06]} Nc6 {[%emt 00:00:16] [%clk 00:02:36]} 10.
Nf3 {[%emt 00:00:01] [%clk 00:03:07]} b5 {[%emt 00:00:18] [%clk 00:02:20]} 11.
Ba2 {[%emt 00:00:02] [%clk 00:03:07]} Bb7 {[%emt 00:00:01] [%clk 00:02:21]} 12.
Qe2 {[%emt 00:00:04] [%clk 00:03:05]} b4 {[%emt 00:00:07] [%clk 00:02:17]} 13.
axb4 {[%emt 00:00:01] [%clk 00:03:05]} Nxb4 {[%emt 00:00:01] [%clk 00:02:17]}
14. Bb3 {[%clk 00:03:07]} Nd7 {[%emt 00:00:05] [%clk 00:02:15]} 15. Be3 {[%emt
00:00:18] [%clk 00:02:50]} Nc5 {[%emt 00:00:06] [%clk 00:02:11]} 16. Bxc5 {[%emt
00:00:01] [%clk 00:02:51]} dxc5 {[%emt 00:00:01] [%clk 00:02:12]} 17. Rfd1
{[%emt 00:00:10] [%clk 00:02:43]} Qc7 {[%emt 00:00:01] [%clk 00:02:13]} 18. Rd2
{[%emt 00:00:18] [%clk 00:02:27]} Bh6 {[%emt 00:00:08] [%clk 00:02:07]} 19. Rdd1
{[%emt 00:00:07] [%clk 00:02:23]} Bg7 {[%emt 00:00:08] [%clk 00:02:01]} 20. Qc4
{[%emt 00:00:18] [%clk 00:02:06]} a5 {[%emt 00:00:14] [%clk 00:01:50]} 21. Nb5
{[%emt 00:00:12] [%clk 00:01:56]} Qb6 {[%emt 00:00:29] [%clk 00:01:23]} 22. c3
{[%emt 00:00:02] [%clk 00:01:55]} Ba6 {[%clk 00:01:25]} 23. cxb4 {[%emt
00:00:08] [%clk 00:01:48]} Bxb5 {[%emt 00:00:04] [%clk 00:01:23]} 24. Qxc5
{[%emt 00:00:03] [%clk 00:01:47]} Qxc5 {[%emt 00:00:01] [%clk 00:01:24]} 25.
bxc5 {[%emt 00:00:02] [%clk 00:01:48]} Bxb2 {[%emt 00:00:01] [%clk 00:01:25]}
26. Rab1 {[%clk 00:01:49]} Be2 {[%emt 00:00:42] [%clk 00:00:45]} 27. Rxb2 {[%emt
00:00:05] [%clk 00:01:46]} Bxd1 {[%clk 00:00:46]} 28. Bxd1 {[%emt 00:00:02]
[%clk 00:01:46]} Rfc8 {[%clk 00:00:47]} 29. Ra2 {[%emt 00:01:06] [%clk
00:00:42]} Rxc5 {[%emt 00:00:02] [%clk 00:00:47]} 30. Ba4 {[%emt 00:00:01] [%clk
00:00:43]} Rb8 {[%emt 00:00:13] [%clk 00:00:37]} 31. Kh2 {[%emt 00:00:04] [%clk
00:00:41]} Rb4 {[%emt 00:00:04] [%clk 00:00:34]} 32. Bc2 {[%emt 00:00:09] [%clk
00:00:34]} Kg7 {[%emt 00:00:07] [%clk 00:00:30]} 33. Ne1 {[%emt 00:00:04] [%clk
00:00:31]} Rbc4 {[%emt 00:00:10] [%clk 00:00:23]} 34. Bd3 {[%emt 00:00:06] [%clk
00:00:27]} Rd4 {[%clk 00:00:24]} 35. Ra3 {[%emt 00:00:06] [%clk 00:00:23]} a4
{[%emt 00:00:05] [%clk 00:00:21]} 36. Nc2 {[%emt 00:00:03] [%clk 00:00:21]} Rxd3
{[%emt 00:00:02] [%clk 00:00:21]} 37. Rxd3 {[%clk 00:00:22]} Rxc2 {[%emt
00:00:01] [%clk 00:00:22]} 38. Rd7 {[%emt 00:00:06] [%clk 00:00:19]} Rxf2 {[%emt
00:00:08] [%clk 00:00:16]} 39. Rxe7 {[%emt 00:00:01] [%clk 00:00:19]} a3 {[%emt
00:00:02] [%clk 00:00:17]} 40. Ra7 {[%emt 00:00:01] [%clk 00:00:19]} a2 {[%clk
00:00:18]} 41. e5 {[%emt 00:00:02] [%clk 00:00:19]} Kf8 {[%emt 00:00:07] [%clk
00:00:13]} 42. Kg3 {[%emt 00:00:03] [%clk 00:00:19]} Rb2 {[%emt 00:00:03] [%clk
00:00:11]} 43. Kf3 {[%emt 00:00:05] [%clk 00:00:16]} Ke8 {[%emt 00:00:04] [%clk
00:00:10]} 44. g4 {[%emt 00:00:02] [%clk 00:00:16]} h6 {[%emt 00:00:02] [%clk
00:00:09]} 45. Ke4 {[%emt 00:00:03] [%clk 00:00:15]} Rd2 {[%emt 00:00:05] [%clk
00:00:06]} 46. Ke3 {[%emt 00:00:06] [%clk 00:00:12]} Rh2 {[%emt 00:00:03] [%clk
00:00:05]} 47. Kd4 {[%emt 00:00:03] [%clk 00:00:11]} Kd8 {[%emt 00:00:02] [%clk
00:00:05]} 48. Kd5 {[%emt 00:00:03] [%clk 00:00:10]} Rd2+ {[%emt 00:00:01] [%clk
00:00:05]} 49. Kc6 {[%emt 00:00:02] [%clk 00:00:11]} Ke8 {[%emt 00:00:01] [%clk
00:00:05]} 50. Kc5 {[%emt 00:00:02] [%clk 00:00:12]} Kf8 {[%emt 00:00:02] [%clk
00:00:06]} 51. Kc4 {[%clk 00:00:12]} Kg8 {[%emt 00:00:03] [%clk 00:00:05]} 52.
Kc3 {[%emt 00:00:01] [%clk 00:00:13]} Rh2 {[%clk 00:00:06]} 53. Kd4 {[%emt
00:00:01] [%clk 00:00:15]} Rxh3 {[%emt 00:00:02] [%clk 00:00:06]} 54. Rxa2
{[%emt 00:00:02] [%clk 00:00:15]} Rg3 {[%clk 00:00:08]} 55. e6 {[%emt 00:00:04]
[%clk 00:00:13]} fxe6 {[%emt 00:00:04] [%clk 00:00:05]} 56. Ke5 {[%clk
00:00:15]} Rxg4 {[%emt 00:00:02] [%clk 00:00:05]} 57. Ra8+ {[%emt 00:00:04]
[%clk 00:00:13]} Kf7 {[%emt 00:00:02] [%clk 00:00:05]} 58. Ra7+ {[%emt 00:00:01]
[%clk 00:00:14]} Ke8 {[%clk 00:00:07]} 59. Kxe6 {[%emt 00:00:01] [%clk
00:00:15]} Kd8 {[%emt 00:00:03] [%clk 00:00:07]} 60. Kf6 {[%emt 00:00:03] [%clk
00:00:12]} h5 {[%emt 00:00:02] [%clk 00:00:07]} 61. Rh7 {[%emt 00:00:06] [%clk
00:00:07]} h4 {[%emt 00:00:02] [%clk 00:00:08]} 62. Ke6 {[%clk 00:00:09]} g5
{[%emt 00:00:02] [%clk 00:00:08]} 63. Kd6 {[%emt 00:00:02] [%clk 00:00:09]} Ke8
{[%emt 00:00:02] [%clk 00:00:08]} 64. Ke6 {[%clk 00:00:11]} Kf8 {[%emt 00:00:04]
[%clk 00:00:05]} 65. Kf6 {[%clk 00:00:12]} Kg8 {[%emt 00:00:01] [%clk 00:00:06]}
66. Ra7 {[%emt 00:00:01] [%clk 00:00:13]} h3 {[%emt 00:00:05] [%clk 00:00:03]}
67. Rg7+ {[%emt 00:00:06] [%clk 00:00:09]} Kf8 {[%emt 00:00:01] [%clk 00:00:04]}
68. Ra7 {[%emt 00:00:03] [%clk 00:00:09]} Kg8 {[%clk 00:00:05]} 69. Rg7+ {[%emt
00:00:01] [%clk 00:00:10]} Kh8 {[%clk 00:00:07]} 70. Kg6 {[%clk 00:00:11]} Ra4
{[%emt 00:00:06] [%clk 00:00:03]} 71. Rh7+ {[%emt 00:00:02] [%clk 00:00:10]} Kg8
{[%clk 00:00:04]} 72. Rxh3 {[%clk 00:00:11]} g4 {[%emt 00:00:03] [%clk
00:00:04]} 73. Rb3 {[%clk 00:00:13]} Rf4 {[%emt 00:00:03] [%clk 00:00:03]} 74.
Rb8+ {[%emt 00:00:02] [%clk 00:00:13]} Rf8 {[%clk 00:00:04]} 75. Rb3 {[%clk
00:00:14]} Rf3 {[%emt 00:00:02] [%clk 00:00:05]} 76. Rb8+ {[%emt 00:00:01] [%clk
00:00:15]} Rf8 {[%clk 00:00:06]} 77. Rb3 {[%emt 00:00:01] [%clk 00:00:16]} Rf3
{[%emt 00:00:03] [%clk 00:00:04]} 78. Rb8+ {[%clk 00:00:17]} 1/2-1/2

[Site "Europe Echecs"]

[Event "Championnat d'Europe de Blitz"]
[Date "2024.12.09"]
[White "Zhukovskyi, Oleksandr"]
[Black "Saric, Ante"]
[WhiteElo "2199"]
[BlackElo "2482"]
[Round "2.33"]
[Result "0-1"]
[TimeControl "180+2"]

1. e4 {[%emt 00:00:03] [%clk 00:03:03]} d5 {[%clk 00:03:04]} 2. exd5 {[%clk
00:03:04]} Nf6 {[%emt 00:00:01] [%clk 00:03:04]} 3. d4 {[%emt 00:00:05] [%clk
00:03:01]} Bg4 {[%emt 00:00:01] [%clk 00:03:05]} 4. Nf3 {[%emt 00:00:11] [%clk
00:02:52]} Bxf3 {[%emt 00:00:01] [%clk 00:03:06]} 5. Qxf3 {[%emt 00:00:03] [%clk
00:02:52]} Qxd5 {[%emt 00:00:01] [%clk 00:03:07]} 6. Qxd5 {[%emt 00:00:08] [%clk
00:02:46]} Nxd5 {[%emt 00:00:01] [%clk 00:03:07]} 7. Bc4 {[%emt 00:00:01] [%clk
00:02:47]} e6 {[%emt 00:00:05] [%clk 00:03:04]} 8. Bxd5 {[%emt 00:00:12] [%clk
00:02:36]} exd5 {[%clk 00:03:06]} 9. Bf4 {[%emt 00:00:01] [%clk 00:02:37]} Nc6
{[%emt 00:00:17] [%clk 00:02:51]} 10. c3 {[%emt 00:00:03] [%clk 00:02:36]} Kd7
{[%emt 00:00:02] [%clk 00:02:51]} 11. Nd2 {[%emt 00:00:31] [%clk 00:02:07]} Re8+
{[%emt 00:00:04] [%clk 00:02:49]} 12. Kd1 {[%emt 00:00:14] [%clk 00:01:55]} f6
{[%emt 00:00:15] [%clk 00:02:37]} 13. h4 {[%emt 00:00:08] [%clk 00:01:48]} h5
{[%emt 00:00:08] [%clk 00:02:31]} 14. Kc2 {[%emt 00:00:07] [%clk 00:01:43]} Be7
{[%emt 00:00:19] [%clk 00:02:14]} 15. Nf3 {[%emt 00:00:05] [%clk 00:01:40]} Bd8
{[%emt 00:00:09] [%clk 00:02:07]} 16. Rae1 {[%emt 00:00:11] [%clk 00:01:31]} Ne7
{[%emt 00:00:01] [%clk 00:02:07]} 17. Re2 {[%emt 00:00:47] [%clk 00:00:45]} Ng6
{[%emt 00:00:02] [%clk 00:02:08]} 18. Rxe8 {[%emt 00:00:09] [%clk 00:00:38]}
Rxe8 {[%emt 00:00:02] [%clk 00:02:08]} 19. Be3 {[%emt 00:00:08] [%clk 00:00:31]}
c6 {[%emt 00:00:25] [%clk 00:01:47]} 20. Kd3 {[%emt 00:00:04] [%clk 00:00:29]}
Bc7 {[%emt 00:00:04] [%clk 00:01:44]} 21. g3 {[%emt 00:00:06] [%clk 00:00:25]}
Ke6 {[%emt 00:00:19] [%clk 00:01:27]} 22. Ke2 {[%emt 00:00:21] [%clk 00:00:07]}
Kf5 {[%emt 00:00:03] [%clk 00:01:26]} 23. Kf1 {[%emt 00:00:04] [%clk 00:00:05]}
Bxg3 {[%emt 00:00:03] [%clk 00:01:24]} 24. Rh3 {[%emt 00:00:06]} Bf4 {[%emt
00:00:03] [%clk 00:01:21]} 25. Ke2 {[%emt 00:00:02] [%clk 00:00:03]} Bxe3 {[%emt
00:00:01] [%clk 00:01:22]} 0-1

[Site "Europe Echecs"]

[Event "Championnat d'Europe de Blitz"]
[Date "2024.12.09"]
[White "Janik, Igor"]
[Black "Djurovic, Peko"]
[WhiteElo "2515"]
[BlackElo "2253"]
[Round "2.34"]
[Result "1-0"]
[TimeControl "180+2"]

1. e4 {[%emt 00:21:05] [%clk 00:03:03]} c5 {[%emt 00:00:03] [%clk 00:03:03]} 2.
Nf3 {[%clk 00:03:04]} Nc6 {[%emt 00:00:02] [%clk 00:03:02]} 3. Bb5 {[%emt
00:00:01] [%clk 00:03:05]} g6 {[%emt 00:00:08] [%clk 00:02:56]} 4. Bxc6 {[%emt
00:00:01] [%clk 00:03:06]} dxc6 {[%clk 00:02:57]} 5. d3 {[%emt 00:00:01] [%clk
00:03:07]} Bg7 {[%emt 00:00:02] [%clk 00:02:58]} 6. h3 {[%clk 00:03:08]} Nf6
{[%emt 00:00:02] [%clk 00:02:58]} 7. O-O {[%emt 00:00:07] [%clk 00:03:03]} Nd7
{[%emt 00:00:03] [%clk 00:02:57]} 8. Re1 {[%emt 00:00:09] [%clk 00:02:56]} e5
{[%emt 00:00:13] [%clk 00:02:45]} 9. a3 {[%clk 00:02:57]} Qe7 {[%emt 00:00:03]
[%clk 00:02:44]} 10. b4 {[%emt 00:00:02] [%clk 00:02:57]} cxb4 {[%emt 00:00:55]
[%clk 00:01:51]} 11. axb4 {[%clk 00:02:59]} Nf8 {[%emt 00:00:02] [%clk
00:01:51]} 12. b5 {[%emt 00:00:10] [%clk 00:02:52]} Ne6 {[%emt 00:00:41] [%clk
00:01:11]} 13. Nc3 {[%emt 00:00:03] [%clk 00:02:50]} O-O {[%emt 00:00:11] [%clk
00:01:03]} 14. bxc6 {[%emt 00:00:05] [%clk 00:02:47]} bxc6 {[%emt 00:00:01]
[%clk 00:01:04]} 15. Ba3 {[%clk 00:02:49]} c5 {[%clk 00:01:05]} 16. Nd5 {[%clk
00:02:50]} Qd6 {[%emt 00:00:02] [%clk 00:01:05]} 17. Nd2 {[%emt 00:00:03] [%clk
00:02:49]} Ba6 {[%emt 00:00:15] [%clk 00:00:52]} 18. Bb2 {[%emt 00:00:15] [%clk
00:02:37]} Bb5 {[%emt 00:00:01] [%clk 00:00:54]} 19. Ra5 {[%emt 00:00:13] [%clk
00:02:25]} a6 {[%emt 00:00:01] [%clk 00:00:55]} 20. Qa1 {[%emt 00:00:01] [%clk
00:02:26]} Nd4 {[%emt 00:00:18] [%clk 00:00:39]} 21. Qc1 {[%emt 00:00:26] [%clk
00:02:02]} h6 {[%emt 00:00:02] [%clk 00:00:38]} 22. c4 {[%clk 00:02:03]} Bc6
{[%emt 00:00:03] [%clk 00:00:38]} 23. Bxd4 {[%clk 00:02:04]} cxd4 {[%emt
00:00:08] [%clk 00:00:32]} 24. Qa1 {[%clk 00:02:06]} Bxd5 {[%emt 00:00:03] [%clk
00:00:31]} 25. cxd5 {[%emt 00:00:03] [%clk 00:02:05]} f5 {[%emt 00:00:04] [%clk
00:00:28]} 26. Nc4 {[%clk 00:02:06]} Qf6 {[%emt 00:00:07] [%clk 00:00:24]} 27.
Qa2 {[%emt 00:00:04] [%clk 00:02:05]} fxe4 {[%emt 00:00:06] [%clk 00:00:20]} 28.
Rxe4 {[%clk 00:02:05]} Qf5 {[%emt 00:00:03] [%clk 00:00:18]} 29. d6 {[%emt
00:00:04] [%clk 00:02:05]} Kh7 {[%clk 00:00:19]} 30. Nxe5 {[%emt 00:00:09] [%clk
00:01:58]} Qh5 {[%emt 00:00:16] [%clk 00:00:05]} 31. Nf3 {[%emt 00:00:15] [%clk
00:01:45]} Rf5 {[%emt 00:00:04] [%clk 00:00:03]} 32. Rxf5 {[%emt 00:00:06] [%clk
00:01:41]} Qxf5 {[%emt 00:00:01] [%clk 00:00:04]} 33. Nxd4 {[%emt 00:00:14]
[%clk 00:01:29]} Qc5 {[%emt 00:00:03] [%clk 00:00:04]} 34. Qf7 {[%emt 00:00:24]
[%clk 00:01:07]} Qxd6 {[%emt 00:00:03] [%clk 00:00:03]} 35. Ne6 {[%emt 00:00:09]
[%clk 00:01:00]} Rg8 {[%clk 00:00:04]} 36. Rh4 {[%emt 00:00:34] [%clk 00:00:28]}
Qe5 {[%emt 00:00:04] [%clk 00:00:03]} 37. d4 {[%clk 00:00:29]} Qe1+ {[%clk
00:00:04]} 38. Kh2 {[%clk 00:00:31]} Qd2 {[%clk 00:00:05]} 39. f4 {[%emt
00:00:03] [%clk 00:00:30]} Kh8 {[%clk 00:00:07]} 40. Qxg6 {[%emt 00:00:05] [%clk
00:00:27]} 1-0

[Site "Europe Echecs"]

[Event "Championnat d'Europe de Blitz"]
[Date "2024.12.09"]
[White "Krasteva, Beloslava"]
[Black "Georgiev, Kiril"]
[WhiteElo "2281"]
[BlackElo "2537"]
[Round "2.35"]
[Result "0-1"]
[TimeControl "180+2"]

1. d4 {[%clk 00:03:03]} Nf6 {[%emt 00:00:05] [%clk 00:03:00]} 2. c4 {[%emt
00:00:02] [%clk 00:03:03]} Nc6 {[%emt 00:00:03] [%clk 00:02:59]} 3. Nf3 {[%emt
00:00:03] [%clk 00:03:02]} e6 {[%emt 00:00:02] [%clk 00:02:59]} 4. Nc3 {[%emt
00:00:10] [%clk 00:02:54]} Bb4 {[%emt 00:00:03] [%clk 00:02:58]} 5. Qc2 {[%emt
00:00:15] [%clk 00:02:41]} d6 {[%emt 00:00:03] [%clk 00:02:56]} 6. e4 {[%emt
00:00:16] [%clk 00:02:28]} O-O {[%emt 00:00:18] [%clk 00:02:39]} 7. Bd3 {[%emt
00:00:11] [%clk 00:02:20]} e5 {[%emt 00:00:05] [%clk 00:02:36]} 8. d5 {[%emt
00:01:09] [%clk 00:01:13]} Bxc3+ {[%emt 00:00:13] [%clk 00:02:24]} 9. Qxc3
{[%emt 00:00:11] [%clk 00:01:04]} Ne7 {[%emt 00:00:02] [%clk 00:02:25]} 10. h3
{[%emt 00:00:13] [%clk 00:00:52]} Ng6 {[%emt 00:00:03] [%clk 00:02:23]} 11. Be3
{[%emt 00:00:11] [%clk 00:00:44]} Nh5 {[%emt 00:00:07] [%clk 00:02:18]} 12.
O-O-O {[%emt 00:00:08] [%clk 00:00:39]} Nhf4 {[%emt 00:00:10] [%clk 00:02:10]}
13. g3 {[%emt 00:00:13] [%clk 00:00:29]} Nxd3+ {[%emt 00:00:07] [%clk 00:02:04]}
14. Qxd3 {[%emt 00:00:02] [%clk 00:00:29]} f5 {[%emt 00:00:06] [%clk 00:02:00]}
15. Nd2 {[%emt 00:00:21] [%clk 00:00:10]} Qe8 {[%emt 00:00:19] [%clk 00:01:42]}
16. exf5 {[%emt 00:00:04] [%clk 00:00:08]} Bxf5 {[%emt 00:00:02] [%clk
00:01:42]} 17. Qe2 {[%clk 00:00:10]} Qa4 {[%emt 00:00:04] [%clk 00:01:41]} 18.
Nb3 {[%emt 00:00:07] [%clk 00:00:05]} Qxa2 {[%emt 00:00:06] [%clk 00:01:37]} 0-1

[Site "Europe Echecs"]

[Event "Championnat d'Europe de Blitz"]
[Date "2024.12.09"]
[White "Pichot, Alan"]
[Black "Radeva, Viktoria"]
[WhiteElo "2637"]
[BlackElo "2275"]
[Round "2.36"]
[Result "1-0"]
[TimeControl "180+2"]

1. e4 {[%clk 00:03:02]} c5 {[%emt 00:00:01] [%clk 00:03:03]} 2. Nf3 {[%emt
00:00:02] [%clk 00:03:03]} a6 {[%emt 00:00:03] [%clk 00:03:02]} 3. Nc3 {[%emt
00:00:03] [%clk 00:03:02]} e6 {[%emt 00:00:04] [%clk 00:03:00]} 4. d4 {[%emt
00:00:02] [%clk 00:03:02]} cxd4 {[%emt 00:00:01] [%clk 00:03:01]} 5. Nxd4 {[%clk
00:03:03]} Qc7 {[%emt 00:00:10] [%clk 00:02:53]} 6. Bd3 {[%emt 00:00:05] [%clk
00:02:59]} Nf6 {[%emt 00:00:08] [%clk 00:02:47]} 7. O-O {[%emt 00:00:04] [%clk
00:02:57]} d6 {[%emt 00:00:06] [%clk 00:02:44]} 8. f4 {[%emt 00:00:12] [%clk
00:02:46]} Be7 {[%emt 00:00:11] [%clk 00:02:35]} 9. Qe2 {[%emt 00:00:03] [%clk
00:02:44]} Nbd7 {[%emt 00:00:03] [%clk 00:02:35]} 10. a4 {[%emt 00:00:15] [%clk
00:02:32]} b6 {[%emt 00:00:07] [%clk 00:02:30]} 11. Bd2 {[%emt 00:00:02] [%clk
00:02:32]} Bb7 {[%emt 00:00:02] [%clk 00:02:30]} 12. Rae1 {[%emt 00:00:01] [%clk
00:02:32]} O-O {[%emt 00:00:15] [%clk 00:02:17]} 13. Kh1 {[%emt 00:00:08] [%clk
00:02:26]} Nc5 {[%emt 00:00:19] [%clk 00:02:00]} 14. Rf3 {[%emt 00:00:17] [%clk
00:02:10]} d5 {[%emt 00:00:20] [%clk 00:01:43]} 15. e5 {[%emt 00:00:06] [%clk
00:02:06]} Nfe4 {[%emt 00:00:02] [%clk 00:01:43]} 16. Rh3 {[%emt 00:00:03] [%clk
00:02:06]} Rfe8 {[%emt 00:00:25] [%clk 00:01:21]} 17. Nd1 {[%emt 00:00:12] [%clk
00:01:55]} Bf8 {[%emt 00:00:11] [%clk 00:01:12]} 18. Be3 {[%emt 00:00:08] [%clk
00:01:49]} Rac8 {[%emt 00:00:04] [%clk 00:01:11]} 19. Nf2 {[%emt 00:00:10] [%clk
00:01:40]} Nxd3 {[%emt 00:00:16] [%clk 00:00:57]} 20. cxd3 {[%emt 00:00:17]
[%clk 00:01:26]} Nxf2+ {[%emt 00:00:01] [%clk 00:00:58]} 21. Bxf2 {[%clk
00:01:26]} g6 {[%emt 00:00:18] [%clk 00:00:42]} 22. Bh4 {[%emt 00:00:08] [%clk
00:01:20]} Bg7 {[%emt 00:00:02] [%clk 00:00:42]} 23. Qe3 {[%emt 00:00:11] [%clk
00:01:12]} Qc5 {[%emt 00:00:05] [%clk 00:00:39]} 24. Bf6 {[%emt 00:00:10] [%clk
00:01:04]} Qb4 {[%emt 00:00:06] [%clk 00:00:36]} 25. Rf1 {[%emt 00:00:04] [%clk
00:01:01]} Rc7 {[%emt 00:00:11] [%clk 00:00:27]} 26. Rh4 {[%emt 00:00:02] [%clk
00:01:00]} Rec8 {[%emt 00:00:05] [%clk 00:00:24]} 27. f5 {[%emt 00:00:08] [%clk
00:00:54]} exf5 {[%emt 00:00:14] [%clk 00:00:12]} 28. Bxg7 {[%emt 00:00:01]
[%clk 00:00:55]} Qxb2 {[%emt 00:00:08] [%clk 00:00:06]} 29. Rxh7 {[%emt
00:00:06] [%clk 00:00:51]} Rc1 {[%emt 00:00:05] [%clk 00:00:04]} 30. Rh8+ {[%emt
00:00:02] [%clk 00:00:51]} 1-0

[Site "Europe Echecs"]